Cogmind - Beta 15 @@@ ROGUE MODE // 2025.09.07 @ 18:35:16 Player: EYE-VY Result: Destroyed by 5J-4ZB(R) with Subdweller Machine Gun Performance ------------- Evolutions (0) 0 Regions Visited (2) 400 Robots Destroyed (6) 30 Value Destroyed (187) 187 Prototype IDs (0) 0 Alien Tech Used (0) 0 Bonus (0) 0 TOTAL SCORE: 617 Bonus ------- None Cogmind --------- Core Integrity 0/250 Matter 261/300 Energy 100/100 System Corruption 0% Temperature Cool (0) Movement Walking (120) Location -10/Subcaves Parts ------- > --- POWER (1) -------- (None) > --- PROPULSION (2) --- Aluminum Leg > --- UTILITY (2) ------ Small Storage Unit > --- WEAPON (2) ------- (None) > --- INVENTORY (8) ---- Improved Heat Sink Subdweller Optics Peak State ------------ > --- POWER ------------ Light Nuclear Core > --- PROPULSION ------- Aluminum Leg Aluminum Leg > --- UTILITY ---------- Small Storage Unit Core Shielding > --- WEAPON ----------- Assault Rifle Light Assault Rifle > --- INVENTORY -------- Ion Engine Aluminum Leg Aluminum Leg Aluminum Leg Improved Heat Sink Subdweller Optics EM Pulse Gun Salvaging Laser [Rating: 10] Favorites ----------- Power Ion Engine Engine Ion Engine Power Core Light Nuclear Core Propulsion Aluminum Leg Treads Light Treads Leg Aluminum Leg Utility Small Storage Unit Storage Small Storage Unit Protection Core Shielding Weapon Assault Rifle Energy Gun Salvaging Laser Ballistic Gun Assault Rifle Build | -11 -10 -10 ------- Run | Yrd Mat Sub Slots Evolved . | . . . Power . | . . . Propulsion . | . . . Utility . | . . . Weapon . | . . . Parts Attached 16 | 8 1 7 Power 3 | 1 . 2 Engine 2 | 1 . 1 Core 1 | . . 1 Reactor . | . . . Propulsion 7 | 4 . 3 Treads 2 | 2 . . Leg 5 | 2 . 3 Wheel . | . . . Hover . | . . . Flight . | . . . Utility 2 | 1 1 . Device . | . . . Storage 1 | 1 . . Processor . | . . . Hackware . | . . . Protection 1 | . 1 . Artifact . | . . . Weapon 4 | 2 . 2 Energy Gun 2 | . . 2 Energy Cannon . | . . . Ballistic Gun 2 | 2 . . Ballistic Cannon . | . . . Launcher . | . . . Special Weapon . | . . . Impact Weapon . | . . . Slashing Weapon . | . . . Piercing Weapon . | . . . Special Melee Weapon . | . . . Unidentified Prototypes . | . . . Parts Lost 12 | . . 12 Power 3 | . . 3 Propulsion 4 | . . 4 Utility 1 | . . 1 Weapon 4 | . . 4 Highest Loss Streak 11 | . . 11 To Critical Strikes . | . . . Average Backups 5 | 2 6 6 Power . | . 1 . Propulsion 2 | 1 2 2 Utility 1 | . . 1 Weapon 1 | . 1 1 Tool/Special . | . . . Unused Backups 2 | . 1 1 Power . | . . . Propulsion . | . . . Utility 2 | . 1 1 Weapon . | . . . Tool/Special . | . . . Average Slot Usage (%) 94 | . 98 92 Engine 8 | . 14 3 Core 4 | . . 8 Leg 26 | . 28 25 Storage 14 | . 14 14 Protection 12 | . 12 13 Energy Gun 1 | . . 1 Ballistic Gun 25 | . 28 22 Peak Build Rating 10 | 6 8 10 Average Rating 7 | 4 7 8 On Entrance 4 | . 6 8 Naked Turns . | . . . Heaviest Build 14 | 13 14 14 Greatest Support 40 | 40 20 20 Greatest Overweight (x) 1 | . . 1 Average Overweight (x) . | . . . Largest Inventory Capacity 8 | 8 8 8 Average Capacity 7 | 6 8 8 Most Carried 8 | 4 8 8 Average Carried 6 | 2 6 6 Final Capacity 8 | 8 8 8 Final Carried 8 | 4 8 2 Class Distribution -------------------- 100% | Mutant Dominant Class ---------------- Mutant | -10/Materials Mutant | -10/Subcaves Resources | -11 -10 -10 ----------- Run | Yrd Mat Sub Matter Collected 355 | 262 56 37 Remotely . | . . . Salvage Created 255 | . 148 107 Parts 12 | . 10 2 Haulers Intercepted . | . . . Recyclers Shooed . | . . . Parts Field Recycled . | . . . Retrieved Matter . | . . . Parts Self-Destructed 1 | . . 1 Prevented . | . . . Kills | -11 -10 -10 ------- Run | Yrd Mat Sub Combat Hostiles Destroyed 5 | . 3 2 Guns 5 | . 3 2 Classes Destroyed 4 | . 3 1 Watcher 1 | . 1 . Swarmer 1 | . 1 . Grunt 2 | . 2 . Subdweller 2 | . . 2 Best Kill Streak 4 | . 4 2 Combat Bots Only 3 | . 3 2 Max Kills in Single Turn 1 | . 1 1 Gunslinging . | . . . Exploded . | . . . Melee . | . . . Uniques/NPCs Destroyed . | . . . Combat | -11 -10 -10 -------- Run | Yrd Mat Sub Hostile Shots Fired 64 | . 11 53 Missed 12 | . 4 8 Hits 52 | . 7 45 Projectile 52 | . 7 45 Critical Strikes 4 | . 1 3 Actively Blocked 1 | . 1 . Damage Taken 1252 | . 88 1164 Core 268 | . 18 250 Absorbed by Shields . | . . . Redirected to Shielding 51 | . 4 47 Core Remaining (%) 100 | 100 . . Volleys Fired 27 | . 7 20 Largest 2 | . 2 2 Hottest 60 | . 40 60 Shots Fired 48 | . 14 34 Gun 48 | . 14 34 Cannon . | . . . Launcher . | . . . Special . | . . . Kinetic 42 | . 14 28 Thermal 4 | . . 4 Explosive . | . . . Electromagnetic 2 | . . 2 Robot Hit Streak 28 | . 7 28 Robot Miss Streak 1 | . 1 1 Penetration Max . | . . . Secondary Targets 2 | . 1 1 Max Gunslinging Chain 1 | . 1 1 Shots Hit Robots 42 | . 10 32 Core Hits 10 | . 6 4 Critical Kills 1 | . 1 . Critical Parts Destroyed . | . . . Critical Strikes 1 | . 1 . Destroy 1 | . 1 . Melee Attacks . | . . . Impact . | . . . Slashing . | . . . Piercing . | . . . Sneak Attacks . | . . . Combat Hostiles . | . . . Follow-up Attacks . | . . . Damage Inflicted 381 | . 119 262 Guns 381 | . 119 262 Cannons . | . . . Explosions . | . . . Melee . | . . . Ramming . | . . . Kinetic 324 | . 119 205 Thermal 36 | . . 36 Explosive . | . . . Electromagnetic 21 | . . 21 Impact . | . . . Slashing . | . . . Piercing . | . . . Highest Corruption . | . . . Average Corruption . | . . . Corruption Purged . | . . . Corruption Blocked . | . . . Overload Shots . | . . . Overflow Damage . | . . . Projectiles . | . . . Explosions . | . . . Melee . | . . . Knockbacks . | . . . Impact . | . . . Kinetic . | . . . Secondary . | . . . Self-Inflicted Damage . | . . . Shots . | . . . Rammed . | . . . Targets Rammed . | . . . Kicked . | . . . Crushed . | . . . Highest Temperature 279 | . 9 279 Average Temperature 113 | . 9 148 Received Heat Transfer 493 | . 42 451 Siege Activations . | . . . Martial Activations . | . . . Shielding Activations . | . . . Robots Disrupted . | . . . Combat Hostiles . | . . . Robots Corrupted . | . . . Combat Hostiles . | . . . Parts Fried . | . . . Impact Corruptions . | . . . Robots Melted . | . . . Combat Hostiles . | . . . Parts Melted . | . . . Heat Transferred 100 | . . 100 Parts Sabotaged . | . . . Parts Stolen . | . . . Parts Stripped . | . . . Power Chain Reactions . | . . . Alert | -11 -10 -10 ------- Run | Yrd Mat Sub Maximum Alert Level . | . . . Low Security (%) 100 | 100 100 . Level 1 . | . . . Level 2 . | . . . Level 3 . | . . . Level 4 . | . . . Level 5 . | . . . High Security . | . . . Max Security . | . . . Peak Influence 67 | . 67 . Initial . | . . . Average 11 | . 16 . Influence Increases 77 | . 77 . Destroy 0b10 Robot/C 60 | . 60 . Destroy 0b10 Robot/NC 5 | . 5 . Destroy Leader 12 | . 12 . Influence Decreases 77 | . 30 47 Entered New Map 23 | . . 23 Time Decay 44 | . 30 14 Lost Part 10 | . . 10 Squads Dispatched 1 | . 1 . Investigation . | . . . Extermination . | . . . Reinforcement 1 | . 1 . Assault . | . . . Garrison . | . . . Intercept . | . . . Searches Triggered . | . . . Construction Impeded . | . . . Haulers Reinforced . | . . . Active Scanning Responses . | . . . Cargo Convoy Interrupts . | . . . Stealth | -11 -10 -10 --------- Run | Yrd Mat Sub Distress Signals 1 | . 1 . Communications Jammed . | . . . Distress Signals . | . . . Times Spotted 11 | . 7 4 Peak Tracking Total 4 | . 4 2 Tactical Retreats . | . . . Traps | -11 -10 -10 ------- Run | Yrd Mat Sub Traps Triggered . | . . . Indirectly . | . . . Trap Hack Attempts . | . . . Triggered . | . . . Disarmed . | . . . Reprogrammed . | . . . Reused . | . . . Traps Extracted . | . . . Installed . | . . . Triggered . | . . . Machines | -11 -10 -10 ---------- Run | Yrd Mat Sub Machines Disabled . | . . . Max in Single Turn . | . . . Machines Repaired . | . . . Machines Dismantled . | . . . Machines Sabotaged . | . . . Overloaded Fab Kills . | . . . Hacking | -11 -10 -10 --------- Run | Yrd Mat Sub Machines Accessed 1 | . 1 . Terminals 1 | . 1 . Fabricators . | . . . Repair Stations . | . . . Recycling Units . | . . . Scanalyzers . | . . . Garrison Access . | . . . Total Hacks 1 | . 1 . Successful . | . . . Failed 1 | . 1 . Catastrophic 1 | . 1 . Database Lockouts . | . . . Manual . | . . . Terminals 1 | . 1 . Fabricators . | . . . Repair Stations . | . . . Recycling Units . | . . . Scanalyzers . | . . . Garrison Access . | . . . Terminal Hacks . | . . . Fabricator Hacks . | . . . Repair Station Hacks . | . . . Recycling Unit Hacks . | . . . Scanalyzer . | . . . Garrison Access Hacks . | . . . Unauthorized Hacks . | . . . Terminals . | . . . Fabricators . | . . . Repair Stations . | . . . Recycling Units . | . . . Scanalyzers . | . . . Garrison Access . | . . . Data Cores Recovered . | . . . Used . | . . . Hacking Detections 1 | . 1 . Full Trace Events . | . . . Feedback Events . | . . . Feedback Blocked . | . . . Robot Schematics Acquired . | . . . Robots Built . | . . . Authchips . | . . . Time . | . . . Total Robot Build Rating . | . . . Part Schematics Acquired . | . . . Parts Built . | . . . Authchips . | . . . Time . | . . . Total Part Build Rating . | . . . Parts Repaired . | . . . Time . | . . . Parts Recycled . | . . . Recycled Matter . | . . . Retrieved Matter . | . . . Retrieved Components . | . . . Parts Scanalyzed . | . . . Part Schematics Acquired . | . . . Parts Damaged . | . . . Bothacking | -11 -10 -10 ------------ Run | Yrd Mat Sub Used RIF Installer . | . . . Robots Hacked . | . . . Non-combat . | . . . Combat . | . . . Robot Hacks Applied . | . . . Relay Couplers Released . | . . . Fabnet Peak Effective % . | . . . Robots Rewired . | . . . Allies Hacked . | . . . Hacks Repelled . | . . . Allies | -11 -10 -10 -------- Run | Yrd Mat Sub Total Allies . | . . . Largest Group . | . . . Highest-Rated Group . | . . . Highest-Rated Ally . | . . . Total Orders . | . . . Ally Attacks . | . . . Total Damage . | . . . Kills . | . . . Allies Corrupted . | . . . Allies Melted . | . . . Intel | -11 -10 -10 ------- Run | Yrd Mat Sub Active Infowar (turns) . | . . . Robot Analysis Total . | . . . Derelict Logs Recovered . | . . . Drone Launches . | . . . Drone Recoveries . | . . . Exploration | -11 -10 -10 ------------- Run | Yrd Mat Sub Turns Passed 464 | 79 176 209 Spaces Moved 277 | 47 119 111 Core 2 | 2 . . Treads 23 | 23 . . Legs 252 | 22 119 111 Wheels . | . . . Hover . | . . . Flight . | . . . Fastest Speed 50 | 50 120 120 Average Speed 124 | 136 120 125 Slowest Speed 190 | 160 120 190 Overloaded Moves . | . . . Propulsion Burnouts . | . . . Robots Hopped . | . . . Potential Cave-ins . | . . . Cave-ins Triggered . | . . . Exploration Rate (%) 14 | 4 32 6 Regions Visited 2 Branch Regions 1 Pre-discovered Areas . | . . . Known Exits Taken . | . . . Unknown Exits Taken 2 | 1 1 . Scrap Searched . | . . . Spaces Dug . | . . . Terrain Destroyed . | . . . Melee . | . . . Projectile . | . . . AOE . | . . . Terrain Rammed . | . . . Walls Destroyed . | . . . Machines Disabled . | . . . Actions | -11 -10 -10 --------- Run | Yrd Mat Sub Total 349 | 58 140 151 Wait 15 | . 4 11 Move 275 | 46 118 111 Hop . | . . . Pick Up 12 | 4 7 1 Fast Attach 7 | 6 1 . Attach 7 | . . 7 Detach . | . . . Swap 3 | 2 . 1 Drop 3 | . 3 . Fire 27 | . 7 20 Melee . | . . . Ram . | . . . Kick . | . . . Crush . | . . . Escape Stasis . | . . . Rewire . | . . . Trap . | . . . Miscellaneous . | . . . Route ------- -11/Scrapyard -10/Materials (discovered 2 exits: [*Min] / [*Sub]) -10/Subcaves History --------- Turn | Location | Event 7 | -11/Scrapyard | Discovered new exit (range 15) 80 | -11/Scrapyard | Entered Materials 81 | -10/Materials | Met a group of wandering Federalists 170 | -10/Materials | Discovered new exit (range 16) 246 | -10/Materials | Discovered new exit (range 8) 256 | -10/Materials | Entered Subcaves 257 | -10/Subcaves | Ambushed by Subdwellers from Twisted Machinery 257 | -10/Subcaves | Continued accompanying wandering Federalists (1) 257 | -10/Subcaves | Approached by a straggling Scientist 315 | -10/Subcaves | Build established: Mutant 390 | -10/Subcaves | Curiously followed by a Cobbler waking with a query about "LVR3C" 428 | -10/Subcaves | Core integrity fell below 50% 445 | -10/Subcaves | Core integrity fell below 20% 465 | -10/Subcaves | Destroyed by 5J-4ZB(R) with Subdweller Machine Gun Last Messages --------------- Subatomizers dissect the Ion Engine. Y6-ZJ4(O) wakes at your presence. Y6-ZJ4(O): "LVR3C?" KZ-6V5(c): "I think it's somewhere northwest of here" Aluminum Leg destroyed. Lgt. Nuclear Core destroyed. Aluminum Leg destroyed. EM Pulse Gun destroyed. Assault Rifle destroyed. Lgt. Assault Rifle destroyed. Critical hit (Meltdown: +280). Aluminum Leg destroyed. Core Shielding destroyed. Salvaging Laser destroyed. Ion Engine destroyed. Aluminum Leg destroyed. KZ-6V5(c): "I think it's somewhere northwest of here" Y6-ZJ4(O) collects matter. Map ----- +----------------------------------------------------+ | ????????????????????????????????????????????? | | ????????????????????????????????????????????? | | ????????????????????????????????????????????? | | ????????????????????????????????????????????? | | ????????????????????????????????????????????? | | ????????????????????????????????????????????? | | ????????????????????????????????????????????? | | ????????????????????????????????????????????? | | ????????????????????????????????????????????? | | ????????????????????????????????????????????? | | ???????????????????????? ??????????????????? | | ????????????????????????R ?????????????????? | | ????????????????????????&R